[Event "FIDE WCC 2018"]
[Site "Khanty-Mansiysk"]
[Date "2018.11.11"]
[Round "3.4"]
[White "Gunina, Valentina"]
[Black "Tokhirjonova, Gulrukhbegim"]
[Result "0-1"]
[ECO "A40"]
[WhiteElo "2497"]
[BlackElo "2435"]
[Annotator "ChessBase"]
[PlyCount "106"]
[EventDate "2018.11.03"]
[EventType "k.o."]
[EventCountry "RUS"]
[SourceTitle "playchess.com"]
[Source "ChessBase"]
[SourceQuality "1"]
[TimeControl "1500+10"]

1. d4 {[%emt 0:00:00]} e6 {[%emt 0:00:00]} 2. c4 {[%emt 0:00:00]} b6 {[%emt 0:00:00]} 3. a3 {[%emt 0:00:54]} Bb7 {[%emt 0:00:00]} 4. Nc3 {[%emt 0:00:02]} Nf6 {[%emt 0:00:00]} 5. Qc2 {[%emt 0:01:19]} d5 {[%emt 0:00:12]} 6. cxd5 {[%emt 0:00:31]} Nxd5 {[%emt 0:00:07]} 7. e4 {[%emt 0:00:46]} Nxc3 {[%emt 0:00:28]} 8. bxc3 {[%emt 0:00:02]} Be7 {[%emt 0:00:33]} 9. Nf3 {[%emt 0:00:42]} O-O {[%emt 0:00:54]} 10. Bd3 {[%emt 0:00:09]} c5 {[%emt 0:00:12]} 11. h4 {[%emt 0:03:41]} cxd4 {[%emt 0:03:10]} 12. e5 {[%emt 0:01:55]} h6 {[%emt 0:00:56]} 13. Ng5 {[%emt 0:00:42]} Qc7 {[%emt 0:01:05]} 14. Bd2 {[%emt 0:07:55]} Qxe5+ {[%emt 0:01:13]} 15. Kf1 {[%emt 0:00:14]} Rd8 {[%emt 0:04:16]} 16. Re1 {[%emt 0:01:10]} Qc7 {[%emt 0:01:01]} 17. Bh7+ {[%emt 0:01:41]} Kf8 {[%emt 0:00:22]} 18. Nxf7 {[%emt 0:00:15]} Qc6 {[%emt 0:06:34]} 19. Qg6 {[%emt 0:01:37]} Qxg2+ {[%emt 0:01:43]} 20. Qxg2 {[%emt 0:00:02]} Bxg2+ {[%emt 0:00:02]} 21. Kxg2 {[%emt 0:00:01]} Kxf7 {[%emt 0:00:01]} 22. Be4 {[%emt 0:00:12]} dxc3 {[%emt 0:00:02]} 23. Bxc3 {[%emt 0:00:11]} Nc6 {[%emt 0:00:44]} 24. Bf3 {[%emt 0:03:47]} Rac8 {[%emt 0:00:50]} 25. Bh5+ {[%emt 0:00:01]} g6 {[%emt 0:00:21]} 26. Bg4 {[%emt 0:00:07]} Rd6 {[%emt 0:00:12]} 27. Rh3 {[%emt 0:00:06]} Rf8 {[%emt 0:01:11]} 28. h5 {[%emt 0:00:09]} e5 {[%emt 0:00:26]} 29. hxg6+ {[%emt 0:00:46]} Rxg6 {[%emt 0:00:03]} 30. f3 {[%emt 0:00:05]} Bxa3 {[%emt 0:00:15]} 31. Kh1 {[%emt 0:00:18]} Kg7 {[%emt 0:00:26]} 32. Bh5 {[%emt 0:00:03]} Rg5 {[%emt 0:00:04]} 33. Bd2 {[%emt 0:00:17]} Rxh5 {[%emt 0:01:11]} 34. Rxh5 {[%emt 0:00:02]} Rxf3 {[%emt 0:00:04]} 35. Rg1+ {[%emt 0:00:08]} Kf7 {[%emt 0:00:03]} 36. Rxh6 {[%emt 0:00:08]} Rf6 {[%emt 0:00:18]} 37. Rh7+ {[%emt 0:00:22]} Ke6 {[%emt 0:00:02]} 38. Bg5 {[%emt 0:00:24]} Rg6 {[%emt 0:00:06]} 39. Rc7 {[%emt 0:00:18]} Nd4 {[%emt 0:00:05]} 40. Rxa7 {[%emt 0:00:17]} Nf3 {[%emt 0:00:34]} 41. Rg3 {[%emt 0:00:16]} Rxg5 {[%emt 0:00:02]} 42. Rxf3 {[%emt 0:00:01]} Bc5 {[%emt 0:00:01]} 43. Kh2 {[%emt 0:00:06]} e4 {[%emt 0:00:03]} 44. Rh3 {[%emt 0:00:13]} e3 {[%emt 0:00:10]} 45. Ra2 {[%emt 0:00:20]} Ke5 {[%emt 0:00:09]} 46. Rh4 {[%emt 0:00:05]} b5 {[%emt 0:00:16]} 47. Rc2 {[%emt 0:00:11]} Bd4 {[%emt 0:00:10]} 48. Rc8 {[%emt 0:00:07]} Bb6 {[%emt 0:00:59]} 49. Rb8 {[%emt 0:00:16]} Bc7 {[%emt 0:00:55]} 50. Rb7 {[%emt 0:00:02]} Bd6 {[%emt 0:00:17]} 51. Rh8 {[%emt 0:00:22]} e2 {[%emt 0:00:19]} 52. Re8+ {[%emt 0:00:02]} Kd4+ {[%emt 0:00:02]} 53. Kh3 {[%emt 0:00:13]} Re5 {[%emt 0:00:01]} 0-1

[Event "FIDE WCC 2018"]
[Site "Khanty-Mansiysk"]
[Date "2018.11.11"]
[Round "3.4"]
[White "Stefanova, Antoaneta"]
[Black "Muzychuk, Anna"]
[Result "0-1"]
[ECO "D00"]
[WhiteElo "2490"]
[BlackElo "2564"]
[Annotator "ChessBase"]
[PlyCount "56"]
[EventDate "2018.11.03"]
[EventType "k.o."]
[EventCountry "RUS"]
[SourceTitle "playchess.com"]
[Source "ChessBase"]
[SourceQuality "1"]
[TimeControl "1500+10"]

1. d4 {[%emt 0:00:00]} d5 {[%emt 0:00:00]} 2. Bf4 {[%emt 0:00:09]} Nf6 {[%emt 0:00:00]} 3. e3 {[%emt 0:00:16]} Bf5 {[%emt 0:00:01]} 4. c4 {[%emt 0:03:02]} e6 {[%emt 0:00:30]} 5. Nc3 {[%emt 0:07:05]} Bb4 {[%emt 0:00:48]} 6. Qb3 {[%emt 0:00:45]} Nc6 {[%emt 0:00:19]} 7. a3 {[%emt 0:00:33]} Bxc3+ {[%emt 0:00:15]} 8. bxc3 {[%emt 0:01:21]} Na5 {[%emt 0:00:35]} 9. Qa4+ {[%emt 0:01:04]} c6 {[%emt 0:00:01]} 10. c5 {[%emt 0:00:04]} b5 {[%emt 0:04:30]} 11. Qd1 {[%emt 0:03:47]} Ne4 {[%emt 0:02:28]} 12. Rc1 {[%emt 0:02:49]} g5 {[%emt 0:00:45]} 13. Bg3 {[%emt 0:00:41]} h5 {[%emt 0:06:28]} 14. f3 {[%emt 0:00:55]} Nxg3 {[%emt 0:00:02]} 15. hxg3 {[%emt 0:00:01]} Nc4 {[%emt 0:00:25]} 16. Bxc4 {[%emt 0:00:38]} bxc4 {[%emt 0:00:03]} 17. g4 {[%emt 0:00:14]} Bd3 {[%emt 0:01:40]} 18. gxh5 {[%emt 0:00:45]} Rb8 {[%emt 0:00:18]} 19. Qd2 {[%emt 0:01:10]} Qa5 {[%emt 0:00:29]} 20. e4 {[%emt 0:00:30]} f6 {[%emt 0:05:03]} 21. e5 {[%emt 0:00:19]} Qxa3 {[%emt 0:00:10]} 22. exf6 {[%emt 0:00:03]} Rb2 {[%emt 0:00:10]} 23. Qxg5 {[%emt 0:00:51]} Rxg2 {[%emt 0:00:08]} 24. f7+ {[%emt 0:00:47]} Kxf7 {[%emt 0:01:13]} 25. Qf4+ {[%emt 0:00:01]} Kg8 {[%emt 0:00:39]} 26. h6 {[%emt 0:00:30]} Qb2 {[%emt 0:00:37]} 27. Qe3 {[%emt 0:00:03]} Kh7 {[%emt 0:00:22]} 28. Qf4 {[%emt 0:00:12]} Qf2+ {[%emt 0:00:09]} 0-1

[Event "FIDE WCC 2018"]
[Site "Khanty-Mansiysk"]
[Date "2018.11.11"]
[Round "3.4"]
[White "Lei, Tingjie"]
[Black "Galliamova, Alisa"]
[Result "1-0"]
[ECO "A50"]
[WhiteElo "2457"]
[BlackElo "2432"]
[Annotator "ChessBase"]
[PlyCount "65"]
[EventDate "2018.11.03"]
[EventType "k.o."]
[EventCountry "RUS"]
[SourceTitle "playchess.com"]
[Source "ChessBase"]
[SourceQuality "1"]
[TimeControl "1500+10"]

1. d4 {[%emt 0:00:00]} Nf6 {[%emt 0:00:00]} 2. c4 {[%emt 0:00:00]} b6 {[%emt 0:00:00]} 3. Nc3 {[%emt 0:00:00]} Bb7 {[%emt 0:00:00]} 4. f3 {[%emt 0:00:00]} e6 {[%emt 0:02:19]} 5. e4 {[%emt 0:00:04]} Be7 {[%emt 0:01:00]} 6. e5 {[%emt 0:01:55]} Ng8 {[%emt 0:00:01]} 7. Be3 {[%emt 0:00:03]} Bh4+ {[%emt 0:00:38]} 8. g3 {[%emt 0:00:50]} Bg5 {[%emt 0:00:04]} 9. Qd2 {[%emt 0:00:00]} Bxe3 {[%emt 0:00:06]} 10. Qxe3 {[%emt 0:00:01]} Ne7 {[%emt 0:00:03]} 11. Bd3 {[%emt 0:00:06]} O-O {[%emt 0:00:22]} 12. Nge2 {[%emt 0:00:27]} d5 {[%emt 0:02:10]} 13. b3 {[%emt 0:02:37]} c5 {[%emt 0:01:28]} 14. Rd1 {[%emt 0:00:32]} Nbc6 {[%emt 0:00:33]} 15. cxd5 {[%emt 0:01:43]} exd5 {[%emt 0:01:44]} 16. O-O {[%emt 0:00:11]} a6 {[%emt 0:04:50]} 17. f4 {[%emt 0:01:25]} Rc8 {[%emt 0:00:34]} 18. Bb1 {[%emt 0:01:29]} Qd7 {[%emt 0:02:51]} 19. dxc5 {[%emt 0:02:44]} bxc5 {[%emt 0:04:24]} 20. Na4 {[%emt 0:01:30]} d4 {[%emt 0:01:45]} 21. Nxc5 {[%emt 0:03:25]} Qh3 {[%emt 0:00:05]} 22. Qf2 {[%emt 0:00:07]} Ba8 {[%emt 0:00:13]} 23. Ne4 {[%emt 0:01:06]} h6 {[%emt 0:00:36]} 24. Qf3 {[%emt 0:00:26]} Rfd8 {[%emt 0:01:18]} 25. g4 {[%emt 0:01:44]} Qxf3 {[%emt 0:00:22]} 26. Rxf3 {[%emt 0:00:02]} f5 {[%emt 0:00:46]} 27. gxf5 {[%emt 0:01:34]} Nxf5 {[%emt 0:00:23]} 28. Nf6+ {[%emt 0:00:03]} gxf6 {[%emt 0:00:07]} 29. Bxf5 {[%emt 0:00:02]} Rb8 {[%emt 0:00:19]} 30. Rg3+ {[%emt 0:01:24]} Kf8 {[%emt 0:00:02]} 31. exf6 {[%emt 0:00:16]} Kf7 {[%emt 0:00:16]} 32. Be4 {[%emt 0:00:24]} Rg8 {[%emt 0:00:49]} 33. Bd5+ {[%emt 0:00:03] Rh8} 1-0

[Event "FIDE WCC 2018"]
[Site "Khanty-Mansiysk"]
[Date "2018.11.11"]
[Round "3.4"]
[White "Zawadzka, Jolanta"]
[Black "Abdumalik, Zhansaya"]
[Result "1/2-1/2"]
[ECO "C44"]
[WhiteElo "2407"]
[BlackElo "2473"]
[Annotator "ChessBase"]
[PlyCount "109"]
[EventDate "2018.11.03"]
[EventType "k.o."]
[EventCountry "RUS"]
[SourceTitle "playchess.com"]
[Source "ChessBase"]
[SourceQuality "1"]
[TimeControl "1500+10"]

1. e4 {[%emt 0:00:00]} e5 {[%emt 0:00:00]} 2. Nf3 {[%emt 0:00:00]} Nc6 {[%emt 0:00:00]} 3. d4 {[%emt 0:00:00]} exd4 {[%emt 0:00:00]} 4. Nxd4 {[%emt 0:00:00]} Nf6 {[%emt 0:00:01]} 5. Nxc6 {[%emt 0:00:02]} bxc6 {[%emt 0:00:01]} 6. Bd3 {[%emt 0:00:02]} g6 {[%emt 0:02:05]} 7. e5 {[%emt 0:01:00]} Nd5 {[%emt 0:00:35]} 8. O-O {[%emt 0:00:25]} Bg7 {[%emt 0:00:11]} 9. Re1 {[%emt 0:00:56]} O-O {[%emt 0:00:21]} 10. c4 {[%emt 0:03:35]} Nb6 {[%emt 0:00:11]} 11. Nc3 {[%emt 0:00:28]} d6 {[%emt 0:01:25]} 12. exd6 {[%emt 0:00:18]} cxd6 {[%emt 0:00:03]} 13. Bf4 {[%emt 0:00:34]} Be6 {[%emt 0:00:38]} 14. Qb3 {[%emt 0:05:21]} d5 {[%emt 0:02:10]} 15. c5 {[%emt 0:03:34]} d4 {[%emt 0:01:31]} 16. Rxe6 {[%emt 0:00:32]} fxe6 {[%emt 0:00:10]} 17. cxb6 {[%emt 0:01:10]} Rxf4 {[%emt 0:02:09]} 18. b7 {[%emt 0:00:01]} Rb8 {[%emt 0:00:19]} 19. Na4 {[%emt 0:00:06]} Rf7 {[%emt 0:02:28]} 20. Ba6 {[%emt 0:01:30]} Qa5 {[%emt 0:01:42]} 21. Qc4 {[%emt 0:00:49]} Qd5 {[%emt 0:00:04]} 22. Qd3 {[%emt 0:00:41]} Rbxb7 {[%emt 0:00:56]} 23. Bxb7 {[%emt 0:00:12]} Rxb7 {[%emt 0:00:01]} 24. b3 {[%emt 0:00:21]} Rf7 {[%emt 0:00:46]} 25. Re1 {[%emt 0:01:23]} e5 {[%emt 0:00:33]} 26. Nb2 {[%emt 0:00:19]} Qa5 {[%emt 0:00:48]} 27. Ra1 {[%emt 0:01:25]} Qd5 {[%emt 0:00:01]} 28. f3 {[%emt 0:00:12]} g5 {[%emt 0:03:31]} 29. h3 {[%emt 0:00:27]} Qe6 {[%emt 0:00:11]} 30. Re1 {[%emt 0:00:17]} Qf5 {[%emt 0:01:02]} 31. Qc4 {[%emt 0:00:12]} h5 {[%emt 0:00:56]} 32. Nd3 {[%emt 0:01:31]} g4 {[%emt 0:01:40]} 33. hxg4 {[%emt 0:00:09]} hxg4 {[%emt 0:00:01]} 34. fxg4 {[%emt 0:00:02]} Qg6 {[%emt 0:01:36]} 35. Nxe5 {[%emt 0:02:38]} Bxe5 {[%emt 0:00:15]} 36. Rxe5 {[%emt 0:00:01]} Qxg4 {[%emt 0:00:09]} 37. Re1 {[%emt 0:00:04]} Qf4 {[%emt 0:00:57]} 38. Qe2 {[%emt 0:00:49]} c5 {[%emt 0:00:28]} 39. Rd1 {[%emt 0:00:02]} Qg5 {[%emt 0:00:45]} 40. Rd3 {[%emt 0:00:08]} Qc1+ {[%emt 0:00:08]} 41. Kh2 {[%emt 0:00:05]} Rh7+ {[%emt 0:00:03]} 42. Rh3 {[%emt 0:00:13]} Qf4+ {[%emt 0:00:16]} 43. Kg1 {[%emt 0:00:07]} Rxh3 {[%emt 0:00:33]} 44. Qe6+ {[%emt 0:00:02]} Kg7 {[%emt 0:00:09]} 45. gxh3 {[%emt 0:00:01]} Qg3+ {[%emt 0:00:04]} 46. Kf1 {[%emt 0:00:02]} Qf3+ {[%emt 0:00:03]} 47. Ke1 {[%emt 0:00:02]} Qc3+ {[%emt 0:00:06]} 48. Kf2 {[%emt 0:00:05]} Qd2+ {[%emt 0:00:13]} 49. Kf3 {[%emt 0:00:05]} Qd1+ {[%emt 0:00:07]} 50. Kf4 {[%emt 0:00:28]} Qf1+ {[%emt 0:00:08]} 51. Kg5 {[%emt 0:00:22]} Qg2+ {[%emt 0:00:30]} 52. Kh4 {[%emt 0:00:25]} Qf2+ {[%emt 0:00:02]} 53. Kg4 {[%emt 0:00:11]} Qg2+ {[%emt 0:00:03]} 54. Kh4 {[%emt 0:00:08]} Qf2+ {[%emt 0:00:01]} 55. Kg4 {[%emt 0:00:02]} 1/2-1/2